Cogmind - Beta 15 @@@ ROGUE MODE // 2025.06.11 @ 14:47:42 Player: LightKnight Result: Destroyed by S-10 Pest with Light Assault Rifle Performance ------------- Evolutions (0) 0 Regions Visited (1) 200 Robots Destroyed (4) 20 Value Destroyed (112) 112 Prototype IDs (2) 40 Alien Tech Used (0) 0 Bonus (0) 0 TOTAL SCORE: 372 Bonus ------- None Cogmind --------- Core Integrity 0/250 Matter 275/300 Energy 204/250 System Corruption 9% Temperature Cool (37) Movement Treading (160) Location -10/Materials Parts ------- > --- POWER (1) -------- Ion Engine > --- PROPULSION (2) --- Light Treads Light Treads > --- UTILITY (2) ------ Heat Sink > --- WEAPON (2) ------- Mining Claw > --- INVENTORY (5) ---- Wheel Compact Wheel Medium Laser Grenade Launcher Peak State ------------ > --- POWER ------------ Ion Engine > --- PROPULSION ------- Aluminum Leg Aluminum Leg > --- UTILITY ---------- Heat Sink Small Storage Unit > --- WEAPON ----------- Medium Laser Small Laser > --- INVENTORY -------- Ion Engine Light Treads Light Treads Wheel Compact Wheel Grenade Launcher Mining Claw [Rating: 7] Favorites ----------- Power Ion Engine Engine Ion Engine Propulsion Aluminum Leg Treads Light Treads Leg Aluminum Leg Utility Small Storage Unit Device Heat Sink Storage Small Storage Unit Weapon Mining Claw Energy Gun Small Laser Slashing Weapon Mining Claw Build | -11 -10 ------- Run | Yrd Mat Slots Evolved . | . . Power . | . . Propulsion . | . . Utility . | . . Weapon . | . . Parts Attached 6 | . 6 Power 1 | . 1 Engine 1 | . 1 Core . | . . Reactor . | . . Propulsion 2 | . 2 Treads 2 | . 2 Leg . | . . Wheel . | . . Hover . | . . Flight . | . . Utility 1 | . 1 Device 1 | . 1 Storage . | . . Processor . | . . Hackware . | . . Protection . | . . Artifact . | . . Weapon 2 | . 2 Energy Gun 1 | . 1 Energy Cannon . | . . Ballistic Gun . | . . Ballistic Cannon . | . . Launcher . | . . Special Weapon . | . . Impact Weapon . | . . Slashing Weapon 1 | . 1 Piercing Weapon . | . . Special Melee Weapon . | . . Unidentified Prototypes . | . . Parts Lost 6 | . 6 Power 1 | . 1 Propulsion 2 | . 2 Utility 1 | . 1 Weapon 2 | . 2 Highest Loss Streak 3 | . 3 To Critical Strikes . | . . Average Backups 6 | . 6 Power . | . . Propulsion 3 | . 3 Utility . | . . Weapon 1 | . 1 Tool/Special . | . . Unused Backups 3 | . 3 Power . | . . Propulsion . | . . Utility . | . . Weapon 3 | . 3 Tool/Special . | . . Average Slot Usage (%) 83 | . 83 Engine 7 | . 7 Treads 1 | . 1 Leg 26 | . 26 Device 10 | . 10 Storage 14 | . 14 Energy Gun 10 | . 10 Slashing Weapon 10 | . 10 Peak Build Rating 7 | . 7 Average Rating 5 | . 5 On Entrance 6 | 6 6 Naked Turns . | . . Heaviest Build 14 | 13 14 Greatest Support 40 | 20 40 Greatest Overweight (x) . | . . Average Overweight (x) . | . . Largest Inventory Capacity 8 | . 8 Average Capacity 7 | . 7 Most Carried 8 | . 8 Average Carried 6 | . 6 Final Capacity 8 | 8 5 Final Carried 6 | 6 4 Class Distribution -------------------- 100% | Mutant Dominant Class ---------------- Mutant | -10/Materials Resources | -11 -10 ----------- Run | Yrd Mat Matter Collected 220 | 200 20 Remotely . | . . Salvage Created 137 | . 137 Parts 5 | . 5 Haulers Intercepted . | . . Recyclers Shooed . | . . Parts Field Recycled . | . . Retrieved Matter . | . . Parts Self-Destructed . | . . Prevented . | . . Kills | -11 -10 ------- Run | Yrd Mat Combat Hostiles Destroyed 4 | . 4 Melee 1 | . 1 Guns 2 | . 2 Classes Destroyed 2 | . 2 Swarmer 1 | . 1 Grunt 3 | . 3 Best Kill Streak 3 | . 3 Combat Bots Only 3 | . 3 Max Kills in Single Turn 1 | . 1 Gunslinging . | . . Exploded . | . . Melee 1 | . 1 Uniques/NPCs Destroyed . | . . Combat | -11 -10 -------- Run | Yrd Mat Hostile Shots Fired 89 | . 89 Missed 15 | . 15 Hits 74 | . 74 Projectile 74 | . 74 Critical Strikes 2 | . 2 Damage Taken 1063 | . 1063 Core 250 | . 250 Absorbed by Shields . | . . Core Remaining (%) 100 | 100 . Volleys Fired 15 | . 15 Largest 2 | . 2 Hottest 90 | . 90 Shots Fired 30 | . 30 Gun 30 | . 30 Cannon . | . . Launcher . | . . Special . | . . Kinetic . | . . Thermal 30 | . 30 Explosive . | . . Electromagnetic . | . . Robot Hit Streak 8 | . 8 Robot Miss Streak 2 | . 2 Penetration Max . | . . Secondary Targets 1 | . 1 Max Gunslinging Chain 1 | . 1 Shots Hit Robots 26 | . 26 Core Hits 5 | . 5 Critical Kills . | . . Critical Parts Destroyed . | . . Critical Strikes 2 | . 2 Burn 2 | . 2 Melee Attacks 17 | . 17 Impact . | . . Slashing 17 | . 17 Piercing . | . . Sneak Attacks . | . . Combat Hostiles . | . . Follow-up Attacks . | . . Damage Inflicted 354 | . 354 Guns 265 | . 265 Cannons . | . . Explosions . | . . Melee 88 | . 88 Ramming 1 | . 1 Kinetic . | . . Thermal 265 | . 265 Explosive . | . . Electromagnetic . | . . Impact . | . . Slashing 88 | . 88 Piercing . | . . Highest Corruption 9 | . 9 Average Corruption 9 | . 9 Corruption Purged . | . . Corruption Blocked . | . . Effects 11 | . 11 Message Errors 4 | . 4 Matter Fused 2 | . 2 Heat Flow Errors 2 | . 2 Energy Discharges 1 | . 1 Data Loss (minor) 1 | . 1 Alerts 1 | . 1 Overload Shots . | . . Overflow Damage 4 | . 4 Projectiles . | . . Explosions . | . . Melee 4 | . 4 Knockbacks . | . . Impact . | . . Kinetic . | . . Secondary . | . . Self-Inflicted Damage . | . . Shots . | . . Rammed 1 | . 1 Targets Rammed 1 | . 1 Kicked . | . . Crushed . | . . Highest Temperature 374 | . 374 Average Temperature 176 | . 176 Received Heat Transfer 210 | . 210 Effects 2 | . 2 Energy Bleed 1 | . 1 Damage (minor) 1 | . 1 Siege Activations . | . . Martial Activations . | . . Shielding Activations . | . . Robots Disrupted . | . . Combat Hostiles . | . . Robots Corrupted . | . . Combat Hostiles . | . . Parts Fried . | . . Impact Corruptions . | . . Robots Melted 1 | . 1 Combat Hostiles 1 | . 1 Parts Melted 2 | . 2 Heat Transferred 855 | . 855 Parts Sabotaged . | . . Parts Stolen . | . . Parts Stripped . | . . Power Chain Reactions . | . . Alert | -11 -10 ------- Run | Yrd Mat Maximum Alert Level . | . . Low Security (%) 100 | . 100 Level 1 . | . . Level 2 . | . . Level 3 . | . . Level 4 . | . . Level 5 . | . . High Security . | . . Max Security . | . . Peak Influence 60 | . 60 Initial . | . . Average 7 | . 7 Influence Increases 108 | . 108 Destroy 0b10 Robot/C 80 | . 80 Destroy Leader 20 | . 20 Successful Hack 5 | . 5 Destroy Structure 3 | . 3 Influence Decreases 96 | . 96 Time Decay 86 | . 86 Lost Part 10 | . 10 Squads Dispatched 2 | . 2 Investigation 1 | . 1 Extermination . | . . Reinforcement 1 | . 1 Assault . | . . Garrison . | . . Intercept . | . . Searches Triggered . | . . Construction Impeded . | . . Haulers Reinforced . | . . Active Scanning Responses . | . . Cargo Convoy Interrupts . | . . Stealth | -11 -10 --------- Run | Yrd Mat Distress Signals . | . . Communications Jammed . | . . Distress Signals . | . . Times Spotted 9 | . 9 Peak Tracking Total 4 | . 4 Tactical Retreats . | . . Traps | -11 -10 ------- Run | Yrd Mat Traps Triggered 1 | . 1 Indirectly . | . . Trap Hack Attempts . | . . Triggered . | . . Disarmed . | . . Reprogrammed . | . . Reused . | . . Traps Extracted . | . . Installed . | . . Triggered . | . . Machines | -11 -10 ---------- Run | Yrd Mat Machines Disabled . | . . Max in Single Turn . | . . Machines Repaired . | . . Machines Dismantled . | . . Machines Sabotaged . | . . Overloaded Fab Kills . | . . Hacking | -11 -10 --------- Run | Yrd Mat Machines Accessed 1 | . 1 Terminals 1 | . 1 Fabricators . | . . Repair Stations . | . . Recycling Units . | . . Scanalyzers . | . . Garrison Access . | . . Total Hacks 2 | . 2 Successful 1 | . 1 Failed 1 | . 1 Catastrophic . | . . Database Lockouts . | . . Manual 1 | . 1 Terminals 2 | . 2 Fabricators . | . . Repair Stations . | . . Recycling Units . | . . Scanalyzers . | . . Garrison Access . | . . Terminal Hacks 1 | . 1 Prototype ID Bank 1 | . 1 Fabricator Hacks . | . . Repair Station Hacks . | . . Recycling Unit Hacks . | . . Scanalyzer . | . . Garrison Access Hacks . | . . Unauthorized Hacks . | . . Terminals . | . . Fabricators . | . . Repair Stations . | . . Recycling Units . | . . Scanalyzers . | . . Garrison Access . | . . Data Cores Recovered . | . . Used . | . . Hacking Detections 1 | . 1 Full Trace Events . | . . Feedback Events . | . . Feedback Blocked . | . . Robot Schematics Acquired . | . . Robots Built . | . . Authchips . | . . Time . | . . Total Robot Build Rating . | . . Part Schematics Acquired . | . . Parts Built . | . . Authchips . | . . Time . | . . Total Part Build Rating . | . . Parts Repaired . | . . Time . | . . Parts Recycled . | . . Recycled Matter . | . . Retrieved Matter . | . . Retrieved Components . | . . Parts Scanalyzed . | . . Part Schematics Acquired . | . . Parts Damaged . | . . Bothacking | -11 -10 ------------ Run | Yrd Mat Used RIF Installer . | . . Robots Hacked . | . . Non-combat . | . . Combat . | . . Robot Hacks Applied . | . . Relay Couplers Released . | . . Fabnet Peak Effective % . | . . Robots Rewired . | . . Allies Hacked . | . . Hacks Repelled . | . . Allies | -11 -10 -------- Run | Yrd Mat Total Allies . | . . Largest Group . | . . Highest-Rated Group . | . . Highest-Rated Ally . | . . Total Orders . | . . Ally Attacks . | . . Total Damage . | . . Kills . | . . Allies Corrupted . | . . Allies Melted . | . . Intel | -11 -10 ------- Run | Yrd Mat Active Infowar (turns) . | . . Robot Analysis Total . | . . Derelict Logs Recovered . | . . Drone Launches . | . . Drone Recoveries . | . . Exploration | -11 -10 ------------- Run | Yrd Mat Turns Passed 768 | . 768 Spaces Moved 139 | 1 138 Core . | . . Treads 3 | . 3 Legs 136 | 1 135 Wheels . | . . Hover . | . . Flight . | . . Fastest Speed 120 | 120 120 Average Speed 120 | 120 120 Slowest Speed 160 | 120 160 Overloaded Moves . | . . Propulsion Burnouts . | . . Robots Hopped . | . . Potential Cave-ins 1 | . 1 Cave-ins Triggered 2 | . 2 Exploration Rate (%) 15 | 2 28 Regions Visited 1 Branch Regions . Pre-discovered Areas . | . . Known Exits Taken . | . . Unknown Exits Taken 1 | 1 . Scrap Searched . | . . Spaces Dug 6 | . 6 Terrain Destroyed 6 | . 6 Melee 6 | . 6 Projectile . | . . AOE . | . . Terrain Rammed . | . . Walls Destroyed . | . . Machines Disabled . | . . Actions | -11 -10 --------- Run | Yrd Mat Total 673 | . 673 Wait 494 | . 494 Move 138 | . 138 Hop . | . . Pick Up 2 | . 2 Fast Attach 1 | . 1 Attach 4 | . 4 Detach . | . . Swap 1 | . 1 Drop . | . . Fire 15 | . 15 Melee 17 | . 17 Ram . | . . Kick . | . . Crush 1 | . 1 Escape Stasis . | . . Rewire . | . . Trap . | . . Miscellaneous . | . . Route ------- -11/Scrapyard -10/Materials (discovered 1 exit: [*Mat]) History --------- Turn | Location | Event 1 | -11/Scrapyard | Discovered new exit (range 0) 1 | -11/Scrapyard | Entered Materials 104 | -10/Materials | Discovered new exit (range 16) 300 | -10/Materials | Build established: Mutant 403 | -10/Materials | Crushed by falling debris 403 | -10/Materials | Core integrity fell below 50% 513 | -10/Materials | Crushed by falling debris 738 | -10/Materials | Core integrity fell below 20% 769 | -10/Materials | Destroyed by S-10 Pest with Light Assault Rifle Last Messages --------------- 00483_ U-05 Engineer lays Concrete. 00498_ System corrupted: Matter fused (-10). 00500_ U-05 Engineer builds a Wall. 00513_ The unstable cave ceiling collapses. 00513_ Crushed by falling debris. 00532_ U-05 Engineer builds a Wall. 00586_ System corrupted: Energy discharge (-22). 00636_ System corrupted: Matter fused (-5). 00672_ XJXG6QT=TJD3CEU#WCHEF89:5,/XX 00689_ System corrupted: Heat flow error (+152). 00705_ X2NEOU CMH8AE WF6, KB6ZEWIVECN=V2D&SGJ> 00735_ Aluminum Leg destroyed. 00736_ 4L FMG9XF6IQLCGRP ZDEKUTMZ 00739_ Aluminum Leg destroyed. 00740_ Destroyed Flight Unit. 00746_ S-10 Pest destroyed. 00757_ Destroyed Flight Unit. 00760_ Slammed into S-10 Pest. 00761_ System corrupted: Heat flow error (+269). 00765_ Sml. Storage Unit destroyed. Map ----- +----------------------------------------------------+ | ????#"" # #???????????????? | | ????#"T # #???????????????? | | ????#"" # #???????????????? | | ????# # #???????????????? | | ????# # #???????????????? | | ????#####+## #######?????????? | | ?????# ??? | | ?????# ############???????? | | ?????# #?# """ #???????? | | ?????# #?# "Y" #???????? | | ?????# #?# #???????? | | ?????# ### #???????? | | ?????# # #???????? | | ?????# + """ #???????? | | ?????# # """ #???????? | | ?????# # """ #???????? | | ?????# # #???????? | | ?????# #########????????? | | ?????# #????????????????? | | ??##?# # #???????????????? | | ??# ## # ????????????? | | ???# # # #####???????????? | | ???### # #???????????????? | | ????##=# #???????????????? | | ######s## ##???????????????? | | # @%s# #????????????????? | | # """ # #????????????????? | | # "T"*!%+ #????????????????? | | # %%# #????????????????? | | # # < #????????????????? | | # """ # #????????????????? | | # """ #####????????????????? | | # """ #????????????????????? | | # #????????????????????? | | #########????????????????????? | | ?????????????????????????????? | | | | | | | | | | | | | | | | | | | | | | | | | | | | | +----------------------------------------------------+ Best States ------------- Heat Dissipation 35 Energy Generation 10 Energy Capacity 250 Matter Stores 300 Matter Capacity 300 Sight Range 16 Terrain Scan Density 10 Evasion (%) 55 Recoil Reduction 2 Item Schematics ----------------- None Robot Schematics ------------------ None Fabricated ------------ Nothing Repaired ---------- Nothing Alien Tech Used ----------------- None Achievements -------------- None Challenges ------------ None Game ------ Seed CombatEfficiencyTether Manual? 0 Play Time 00:06:22 Cumulative 314.3 hours Start 2025.06.11 @ 14:44:27 End 2025.06.11 @ 14:47:42 Sessions 1 Manual Loads 0 Difficulty Rogue Special Mode None Game No. 224 Rogue 224 Adventurer 0 Explorer 0 Win Type - Total 24 Types 18/0/4/2/0/0/0/0/0/0 Lore% 87 Gallery% 74 Achievement% 64 Wizard Run 0 Options --------- Layout 0 ASCII 1 Keyboard 1 Movement Arrows Keybinds 0 Fullscreen 2 Font 18/Terminus Map View 76x50 Zoom Use 0% Tactical HUD 1 Map Filters NONE Filters NONE Steam 1 RUN: 682dc352-f4c0-4a18-a9e5-8922154682a9